[Event "Late-Titled-Tuesday-Blitz-July-09-2024"]
[Site "Chess.com"]
[Date "2024.07.09"]
[Round "6"]
[White "krzyzan94"]
[Black "Seochesspie"]
[Result "1-0"]
[WhiteElo "2770"]
[BlackElo "2934"]
[TimeControl "180+1"]
[EndTime "15:04:32 PDT"]
[Termination "krzyzan94 won by resignation"]

1. e4 {[%clk 0:03:00.9]} 1... c5 {[%clk 0:03:00.1]} 2. Nf3 {[%clk 0:03:00.4]}
2... d6 {[%clk 0:03:00.5]} 3. d4 {[%clk 0:02:59.8]} 3... cxd4 {[%clk 0:03:01]}
4. Nxd4 {[%clk 0:03:00.4]} 4... Nf6 {[%clk 0:03:01.6]} 5. Nc3 {[%clk 0:03:00.7]}
5... a6 {[%clk 0:03:02.2]} 6. Bd3 {[%clk 0:02:56.3]} 6... g6 {[%clk 0:03:00.6]}
7. f3 {[%clk 0:02:51.2]} 7... Nbd7 {[%clk 0:02:59.1]} 8. Be3 {[%clk 0:02:51.5]}
8... Ne5 {[%clk 0:02:52.3]} 9. Qd2 {[%clk 0:02:44.8]} 9... b5 {[%clk 0:02:46]}
10. a4 {[%clk 0:02:38.7]} 10... bxa4 {[%clk 0:02:43.7]} 11. Be2 {[%clk
0:02:32.8]} 11... Bg7 {[%clk 0:02:28.6]} 12. O-O {[%clk 0:02:32.3]} 12... O-O
{[%clk 0:02:27.9]} 13. Rxa4 {[%clk 0:02:32.1]} 13... d5 {[%clk 0:02:17.1]} 14.
exd5 {[%clk 0:02:17.7]} 14... Bb7 {[%clk 0:02:04.5]} 15. Rfa1 {[%clk 0:02:03.9]}
15... Nxd5 {[%clk 0:01:30.4]} 16. Nxd5 {[%clk 0:01:42.3]} 16... Bxd5 {[%clk
0:01:29.8]} 17. b3 {[%clk 0:01:38.3]} 17... Nc6 {[%clk 0:01:24.2]} 18. Rd1
{[%clk 0:01:12.1]} 18... a5 {[%clk 0:01:12.6]} 19. Nxc6 {[%clk 0:00:59.7]} 19...
Bxc6 {[%clk 0:01:12.6]} 20. Qxd8 {[%clk 0:01:00.6]} 20... Rfxd8 {[%clk
0:01:12.6]} 21. Rxd8+ {[%clk 0:01:01.2]} 21... Rxd8 {[%clk 0:01:12.9]} 22. Rxa5
{[%clk 0:01:01.9]} 22... e5 {[%clk 0:01:07.8]} 23. Kf2 {[%clk 0:01:01.3]} 23...
f5 {[%clk 0:01:05.9]} 24. Bc4+ {[%clk 0:00:57.9]} 24... Kh8 {[%clk 0:01:06]} 25.
Bg5 {[%clk 0:00:55]} 25... Rc8 {[%clk 0:01:05.1]} 26. Be6 {[%clk 0:00:51.8]}
26... Re8 {[%clk 0:01:04.8]} 27. Bd5 {[%clk 0:00:47.3]} 27... Bxd5 {[%clk
0:01:05]} 28. Rxd5 {[%clk 0:00:48.2]} 28... h6 {[%clk 0:01:04.5]} 29. Bd2 {[%clk
0:00:46.9]} 29... e4 {[%clk 0:01:02.4]} 30. fxe4 {[%clk 0:00:46.9]} 30... Rxe4
{[%clk 0:01:03.1]} 31. c4 {[%clk 0:00:41.6]} 31... Kg8 {[%clk 0:00:52.6]} 32. c5
{[%clk 0:00:39.6]} 32... Kf7 {[%clk 0:00:10.5]} 33. c6 {[%clk 0:00:37.5]} 33...
Re6 {[%clk 0:00:10.6]} 34. Rd7+ {[%clk 0:00:36.9]} 34... Kf8 {[%clk 0:00:08.8]}
35. Bb4+ {[%clk 0:00:35.6]} 1-0

[Event "Late-Titled-Tuesday-Blitz-July-09-2024"]
[Site "Chess.com"]
[Date "2024.07.09"]
[Round "6"]
[White "tandercat"]
[Black "ernestina08chess"]
[Result "0-1"]
[WhiteElo "1932"]
[BlackElo "2297"]
[TimeControl "180+1"]
[EndTime "15:04:37 PDT"]
[Termination "ernestina08chess won on time"]

1. d4 {[%clk 0:03:00.9]} 1... d5 {[%clk 0:02:58.8]} 2. c4 {[%clk 0:03:00.3]}
2... dxc4 {[%clk 0:02:59.2]} 3. e4 {[%clk 0:02:59.2]} 3... e5 {[%clk 0:02:59.2]}
4. Nf3 {[%clk 0:02:57.4]} 4... exd4 {[%clk 0:02:56.7]} 5. Bxc4 {[%clk
0:02:57.2]} 5... Nc6 {[%clk 0:02:56]} 6. O-O {[%clk 0:02:35.1]} 6... Be6 {[%clk
0:02:56]} 7. Bxe6 {[%clk 0:02:33.5]} 7... fxe6 {[%clk 0:02:55.3]} 8. Qb3 {[%clk
0:02:34]} 8... Qc8 {[%clk 0:02:48.5]} 9. Ng5 {[%clk 0:02:22.8]} 9... Nf6 {[%clk
0:02:25.2]} 10. Nxe6 {[%clk 0:01:51.8]} 10... Na5 {[%clk 0:02:22.2]} 11. Qa4+
{[%clk 0:01:39.9]} 11... Qd7 {[%clk 0:02:09.9]} 12. Qxa5 {[%clk 0:01:29.8]}
12... Qxe6 {[%clk 0:02:08.6]} 13. Qxc7 {[%clk 0:01:26.7]} 13... Be7 {[%clk
0:01:53.6]} 14. e5 {[%clk 0:00:45.2]} 14... Nd5 {[%clk 0:01:46.6]} 15. Qxb7
{[%clk 0:00:45]} 15... O-O {[%clk 0:01:47]} 16. f4 {[%clk 0:00:42.8]} 16... Rfb8
{[%clk 0:01:41.9]} 17. f5 {[%clk 0:00:38.8]} 17... Rxb7 {[%clk 0:01:24.5]} 18.
fxe6 {[%clk 0:00:38.3]} 18... Rb6 {[%clk 0:01:18.6]} 19. Nd2 {[%clk 0:00:35.3]}
19... Rxe6 {[%clk 0:01:18]} 20. Nf3 {[%clk 0:00:34.1]} 20... d3 {[%clk
0:01:17.4]} 21. Bd2 {[%clk 0:00:31.9]} 21... Bc5+ {[%clk 0:01:13.7]} 22. Kh1
{[%clk 0:00:30]} 22... Be3 {[%clk 0:01:08.5]} 23. Rad1 {[%clk 0:00:24.7]} 23...
h6 {[%clk 0:01:04.1]} 24. Rfe1 {[%clk 0:00:24.5]} 24... Bb6 {[%clk 0:00:51.1]}
25. Bc3 {[%clk 0:00:11.5]} 25... Nxc3 {[%clk 0:00:46.9]} 26. bxc3 {[%clk
0:00:10.9]} 26... Rd8 {[%clk 0:00:47.5]} 27. h3 {[%clk 0:00:05.9]} 27... g5
{[%clk 0:00:46.5]} 28. Kh2 {[%clk 0:00:04.8]} 28... Kg7 {[%clk 0:00:46.5]} 29.
Kg3 {[%clk 0:00:05.2]} 29... Kg6 {[%clk 0:00:46.7]} 30. h4 {[%clk 0:00:03]}
30... Bc7 {[%clk 0:00:39.7]} 31. h5+ {[%clk 0:00:02.7]} 31... Kxh5 {[%clk
0:00:37.1]} 32. Rh1+ {[%clk 0:00:02.6]} 32... Kg6 {[%clk 0:00:37.5]} 33. Nd4
{[%clk 0:00:02.8]} 33... Bxe5+ {[%clk 0:00:36.4]} 0-1

[Event "Late-Titled-Tuesday-Blitz-July-09-2024"]
[Site "Chess.com"]
[Date "2024.07.09"]
[Round "6"]
[White "PawnEatingZombie"]
[Black "Yahisalem"]
[Result "1-0"]
[WhiteElo "2273"]
[BlackElo "1959"]
[TimeControl "180+1"]
[EndTime "15:04:37 PDT"]
[Termination "PawnEatingZombie won by resignation"]

1. Nf3 {[%clk 0:03:00.9]} 1... d6 {[%clk 0:02:59.7]} 2. g3 {[%clk 0:02:55.2]}
2... Nf6 {[%clk 0:02:59.8]} 3. Bg2 {[%clk 0:02:55.6]} 3... g6 {[%clk 0:02:59.5]}
4. O-O {[%clk 0:02:56.1]} 4... Bg7 {[%clk 0:02:59.4]} 5. c4 {[%clk 0:02:54.6]}
5... O-O {[%clk 0:02:59.8]} 6. Nc3 {[%clk 0:02:54.6]} 6... e5 {[%clk 0:02:59.3]}
7. d3 {[%clk 0:02:47.5]} 7... Bd7 {[%clk 0:02:58.9]} 8. b3 {[%clk 0:02:46.4]}
8... Bc6 {[%clk 0:02:58.8]} 9. Bb2 {[%clk 0:02:45.8]} 9... e4 {[%clk 0:02:57.8]}
10. Nxe4 {[%clk 0:02:42.5]} 10... Nxe4 {[%clk 0:02:57.7]} 11. Bxg7 {[%clk
0:02:42.3]} 11... Nxf2 {[%clk 0:02:46.8]} 12. Rxf2 {[%clk 0:02:36.8]} 12... Kxg7
{[%clk 0:02:46.6]} 13. Qd2 {[%clk 0:02:21.9]} 13... Nd7 {[%clk 0:02:45.5]} 14.
Raf1 {[%clk 0:02:20.2]} 14... Qe7 {[%clk 0:02:40.8]} 15. d4 {[%clk 0:02:02.4]}
15... Bxf3 {[%clk 0:02:16.6]} 16. Bxf3 {[%clk 0:01:57.1]} 16... Rab8 {[%clk
0:02:15.8]} 17. Bg2 {[%clk 0:01:55.2]} 17... f5 {[%clk 0:02:14.8]} 18. Qa5
{[%clk 0:01:17.1]} 18... Rfc8 {[%clk 0:01:49.8]} 19. e4 {[%clk 0:01:11]} 19...
b6 {[%clk 0:01:41.9]} 20. Qe1 {[%clk 0:01:08.2]} 20... Rf8 {[%clk 0:01:37.2]}
21. exf5 {[%clk 0:01:05.9]} 21... Qxe1 {[%clk 0:01:36.5]} 22. Rxe1 {[%clk
0:01:06.5]} 22... gxf5 {[%clk 0:01:34]} 23. Ref1 {[%clk 0:01:06.1]} 23... c5
{[%clk 0:01:22.8]} 24. d5 {[%clk 0:00:58.3]} 24... Ne5 {[%clk 0:01:22.5]} 25.
Rxf5 {[%clk 0:00:55.7]} 25... Rxf5 {[%clk 0:01:22.3]} 26. Rxf5 {[%clk
0:00:56.6]} 26... Rf8 {[%clk 0:01:22]} 27. Rxf8 {[%clk 0:00:56.1]} 27... Kxf8
{[%clk 0:01:22.1]} 28. h3 {[%clk 0:00:50.6]} 28... Nd3 {[%clk 0:01:16.4]} 29.
Be4 {[%clk 0:00:44.3]} 29... Nc1 {[%clk 0:01:05.5]} 30. Bb1 {[%clk 0:00:43.3]}
30... Kg7 {[%clk 0:01:05.1]} 31. Kf2 {[%clk 0:00:42.2]} 31... h6 {[%clk
0:01:02.7]} 32. Ke3 {[%clk 0:00:41.3]} 32... a6 {[%clk 0:00:46.1]} 33. Kd2
{[%clk 0:00:41.2]} 33... Nxa2 {[%clk 0:00:45.2]} 34. Bxa2 {[%clk 0:00:40.7]}
34... b5 {[%clk 0:00:46.1]} 35. Ke3 {[%clk 0:00:40.1]} 35... bxc4 {[%clk
0:00:44.8]} 36. bxc4 {[%clk 0:00:39.4]} 36... a5 {[%clk 0:00:45.2]} 37. Bb3
{[%clk 0:00:38.7]} 37... Kf6 {[%clk 0:00:45.2]} 38. Kf4 {[%clk 0:00:38.9]} 38...
Kg6 {[%clk 0:00:45.1]} 39. g4 {[%clk 0:00:38.6]} 39... Kf6 {[%clk 0:00:45]} 40.
h4 {[%clk 0:00:38.8]} 40... Kg6 {[%clk 0:00:45.3]} 41. g5 {[%clk 0:00:37.8]}
41... hxg5+ {[%clk 0:00:42.3]} 42. hxg5 {[%clk 0:00:38.7]} 42... Kg7 {[%clk
0:00:41.6]} 43. Kf5 {[%clk 0:00:38.1]} 43... Kf7 {[%clk 0:00:41.5]} 44. Ba4
{[%clk 0:00:35.7]} 44... Kg7 {[%clk 0:00:40.4]} 45. Ke6 {[%clk 0:00:35.4]} 45...
Kg6 {[%clk 0:00:40.4]} 46. Kxd6 {[%clk 0:00:36]} 46... Kxg5 {[%clk 0:00:40.7]}
47. Kxc5 {[%clk 0:00:36.2]} 1-0

[Event "Late-Titled-Tuesday-Blitz-July-09-2024"]
[Site "Chess.com"]
[Date "2024.07.09"]
[Round "6"]
[White "brm72"]
[Black "Arystanner"]
[Result "1-0"]
[WhiteElo "2660"]
[BlackElo "2882"]
[TimeControl "180+1"]
[EndTime "15:04:43 PDT"]
[Termination "brm72 won on time"]

1. e4 {[%clk 0:03:00.9]} 1... c5 {[%clk 0:02:57.2]} 2. Nf3 {[%clk 0:03:00.3]}
2... Nc6 {[%clk 0:02:57.8]} 3. Bb5 {[%clk 0:02:59.5]} 3... Nf6 {[%clk
0:02:58.3]} 4. Nc3 {[%clk 0:02:57.4]} 4... g6 {[%clk 0:02:58.3]} 5. O-O {[%clk
0:02:56.6]} 5... Bg7 {[%clk 0:02:57.9]} 6. e5 {[%clk 0:02:56.7]} 6... Nh5 {[%clk
0:02:57.5]} 7. Re1 {[%clk 0:02:51.5]} 7... Nd4 {[%clk 0:02:57.5]} 8. Bc4 {[%clk
0:02:44.7]} 8... O-O {[%clk 0:02:57.4]} 9. d3 {[%clk 0:02:35.4]} 9... a6 {[%clk
0:02:51.3]} 10. a4 {[%clk 0:02:35]} 10... d6 {[%clk 0:02:51.4]} 11. exd6 {[%clk
0:02:30.5]} 11... exd6 {[%clk 0:02:49.7]} 12. h3 {[%clk 0:02:23.7]} 12... Be6
{[%clk 0:02:35]} 13. Be3 {[%clk 0:02:05.4]} 13... d5 {[%clk 0:02:32.6]} 14. Ba2
{[%clk 0:02:03.5]} 14... Nxf3+ {[%clk 0:02:33]} 15. Qxf3 {[%clk 0:01:57.6]}
15... d4 {[%clk 0:02:33.9]} 16. Bd2 {[%clk 0:01:53.9]} 16... dxc3 {[%clk
0:02:32.6]} 17. bxc3 {[%clk 0:01:54.8]} 17... Bxa2 {[%clk 0:02:31.7]} 18. Rxa2
{[%clk 0:01:55.3]} 18... Qd7 {[%clk 0:02:24.3]} 19. Rb1 {[%clk 0:01:54.5]} 19...
Qc6 {[%clk 0:02:14.4]} 20. Qxc6 {[%clk 0:01:52.5]} 20... bxc6 {[%clk 0:02:15.3]}
21. Rb6 {[%clk 0:01:52.6]} 21... Rfe8 {[%clk 0:02:10.2]} 22. Kf1 {[%clk
0:01:49.2]} 22... Rab8 {[%clk 0:02:08.2]} 23. Rab2 {[%clk 0:01:47.1]} 23... Rbc8
{[%clk 0:02:00.8]} 24. Rxa6 {[%clk 0:01:46.8]} 24... Nf6 {[%clk 0:02:01.7]} 25.
Rb7 {[%clk 0:01:41.2]} 25... Nd5 {[%clk 0:01:56.3]} 26. Raa7 {[%clk 0:01:39.4]}
26... Nxc3 {[%clk 0:01:32.5]} 27. Rxf7 {[%clk 0:01:33.7]} 27... Bd4 {[%clk
0:01:32.8]} 28. Rxh7 {[%clk 0:01:28.2]} 28... Rb8 {[%clk 0:01:32.6]} 29. g4
{[%clk 0:01:10.7]} 29... Rf8 {[%clk 0:01:23.1]} 30. Be3 {[%clk 0:01:04.3]} 30...
Be5 {[%clk 0:00:59.1]} 31. Bxc5 {[%clk 0:01:03.5]} 31... Rfe8 {[%clk 0:00:59]}
32. f4 {[%clk 0:00:57.2]} 32... Bf6 {[%clk 0:00:37.7]} 33. g5 {[%clk 0:00:51.3]}
33... Rb1+ {[%clk 0:00:36.7]} 34. Kf2 {[%clk 0:00:49.9]} 34... Re2+ {[%clk
0:00:11.3]} 35. Kg3 {[%clk 0:00:49.6]} 35... Bh8 {[%clk 0:00:06.9]} 36. Rh6
{[%clk 0:00:49.6]} 36... Re6 {[%clk 0:00:03.9]} 37. Ra8+ {[%clk 0:00:43]} 37...
Kf7 {[%clk 0:00:04.1]} 38. Rhxh8 {[%clk 0:00:42.5]} 38... Ne2+ {[%clk
0:00:02.1]} 39. Kf2 {[%clk 0:00:39.9]} 1-0

[Event "Late-Titled-Tuesday-Blitz-July-09-2024"]
[Site "Chess.com"]
[Date "2024.07.09"]
[Round "6"]
[White "falzehope0"]
[Black "Andrei_Skvortsov"]
[Result "0-1"]
[WhiteElo "2465"]
[BlackElo "2784"]
[TimeControl "180+1"]
[EndTime "15:04:44 PDT"]
[Termination "Andrei_Skvortsov won by checkmate"]

1. d4 {[%clk 0:03:00.9]} 1... g6 {[%clk 0:02:43.2]} 2. e3 {[%clk 0:03:00.2]}
2... Bg7 {[%clk 0:02:43.2]} 3. Bd3 {[%clk 0:03:00]} 3... e5 {[%clk 0:02:39.1]}
4. c3 {[%clk 0:02:59.3]} 4... exd4 {[%clk 0:02:38.9]} 5. exd4 {[%clk 0:02:58.2]}
5... Nf6 {[%clk 0:02:36.9]} 6. f4 {[%clk 0:02:58.4]} 6... O-O {[%clk 0:02:36.7]}
7. Nf3 {[%clk 0:02:57.3]} 7... Re8+ {[%clk 0:02:37.1]} 8. Be2 {[%clk 0:02:48.6]}
8... Qe7 {[%clk 0:02:36.8]} 9. h3 {[%clk 0:02:41.4]} 9... b6 {[%clk 0:02:30.4]}
10. Kf2 {[%clk 0:02:40.8]} 10... Ne4+ {[%clk 0:02:29.9]} 11. Kg1 {[%clk
0:02:29.8]} 11... Ng3 {[%clk 0:02:30.2]} 12. Bd3 {[%clk 0:02:27.5]} 12... Nxh1
{[%clk 0:02:26.7]} 13. Kxh1 {[%clk 0:02:28.4]} 13... Bb7 {[%clk 0:02:26.6]} 14.
Nbd2 {[%clk 0:02:27.2]} 14... d6 {[%clk 0:02:18.7]} 15. f5 {[%clk 0:02:26.3]}
15... Nd7 {[%clk 0:02:18.5]} 16. Qf1 {[%clk 0:02:24.1]} 16... Nf6 {[%clk
0:02:16.8]} 17. Bb5 {[%clk 0:02:19.8]} 17... Nh5 {[%clk 0:02:15.7]} 18. Qf2
{[%clk 0:02:15.6]} 18... Qe3 {[%clk 0:02:12.6]} 19. Qh4 {[%clk 0:02:07.1]} 19...
c6 {[%clk 0:01:58.2]} 20. fxg6 {[%clk 0:01:58]} 20... hxg6 {[%clk 0:01:54.8]}
21. Bc4 {[%clk 0:01:53.8]} 21... Qe7 {[%clk 0:01:44]} 22. Qg4 {[%clk 0:01:41.5]}
22... d5 {[%clk 0:01:34.1]} 23. Bd3 {[%clk 0:01:34.5]} 23... Bc8 {[%clk
0:01:34.6]} 24. Qg5 {[%clk 0:01:31.2]} 24... Qxg5 {[%clk 0:01:34.7]} 25. Nxg5
{[%clk 0:01:30.1]} 25... Re1+ {[%clk 0:01:35.4]} 26. Kh2 {[%clk 0:01:27.6]}
26... Bh6 {[%clk 0:01:32.4]} 27. Ndf3 {[%clk 0:01:25.6]} 27... Re8 {[%clk
0:01:25.4]} 28. g4 {[%clk 0:01:09.5]} 28... Nf6 {[%clk 0:01:20.9]} 29. Ne5
{[%clk 0:01:00]} 29... Bxg5 {[%clk 0:01:17.3]} 30. Bxg5 {[%clk 0:00:57.5]} 30...
Nh7 {[%clk 0:01:17.9]} 31. Bh4 {[%clk 0:00:49.8]} 31... Bb7 {[%clk 0:01:17.7]}
32. Rf1 {[%clk 0:00:46.7]} 32... f6 {[%clk 0:01:10.3]} 33. Nxg6 {[%clk
0:00:37.8]} 33... Re3 {[%clk 0:01:06.4]} 34. Rd1 {[%clk 0:00:26.1]} 34... Rae8
{[%clk 0:01:02]} 35. Bf2 {[%clk 0:00:23]} 35... Re2 {[%clk 0:00:41.3]} 36. Bxe2
{[%clk 0:00:17.7]} 36... Rxe2 {[%clk 0:00:42.2]} 37. Kg1 {[%clk 0:00:13.2]}
37... Ng5 {[%clk 0:00:41.8]} 38. Kf1 {[%clk 0:00:09]} 38... Rxb2 {[%clk
0:00:41.5]} 39. Nf4 {[%clk 0:00:07.4]} 39... Ne4 {[%clk 0:00:40.9]} 40. Be1
{[%clk 0:00:06.4]} 40... Ba6+ {[%clk 0:00:40.5]} 41. Kg1 {[%clk 0:00:06]} 41...
Ng5 {[%clk 0:00:40]} 42. a4 {[%clk 0:00:05.1]} 42... Nf3+ {[%clk 0:00:39.7]} 43.
Kh1 {[%clk 0:00:05.2]} 43... Rh2# {[%clk 0:00:40.2]} 0-1

[Event "Late-Titled-Tuesday-Blitz-July-09-2024"]
[Site "Chess.com"]
[Date "2024.07.09"]
[Round "6"]
[White "Bugcrusher"]
[Black "koncheto"]
[Result "1-0"]
[WhiteElo "2503"]
[BlackElo "2651"]
[TimeControl "180+1"]
[EndTime "15:04:48 PDT"]
[Termination "Bugcrusher won by checkmate"]

1. e4 {[%clk 0:02:59.3]} 1... c5 {[%clk 0:02:59.9]} 2. Nc3 {[%clk 0:02:58.5]}
2... Nc6 {[%clk 0:02:59.4]} 3. Bb5 {[%clk 0:02:57.9]} 3... Nd4 {[%clk
0:02:59.8]} 4. Nf3 {[%clk 0:02:57.3]} 4... a6 {[%clk 0:02:58.8]} 5. Bd3 {[%clk
0:02:56.6]} 5... e6 {[%clk 0:02:59.4]} 6. O-O {[%clk 0:02:55.1]} 6... g6 {[%clk
0:02:59.4]} 7. Nxd4 {[%clk 0:02:51.9]} 7... cxd4 {[%clk 0:02:59.4]} 8. Ne2
{[%clk 0:02:52.8]} 8... Bg7 {[%clk 0:03:00]} 9. c3 {[%clk 0:02:52.7]} 9... dxc3
{[%clk 0:03:00.1]} 10. dxc3 {[%clk 0:02:45.6]} 10... Ne7 {[%clk 0:02:59]} 11.
Bg5 {[%clk 0:02:39.5]} 11... O-O {[%clk 0:02:54.8]} 12. Qd2 {[%clk 0:02:38.7]}
12... b6 {[%clk 0:02:52.5]} 13. Bh6 {[%clk 0:02:37]} 13... Bb7 {[%clk 0:02:43]}
14. Ng3 {[%clk 0:02:32.6]} 14... d5 {[%clk 0:02:29.2]} 15. e5 {[%clk 0:02:20.6]}
15... Bxe5 {[%clk 0:02:17.7]} 16. Bxf8 {[%clk 0:02:19.3]} 16... Qxf8 {[%clk
0:02:18.6]} 17. Rae1 {[%clk 0:02:14.6]} 17... Bg7 {[%clk 0:02:13.7]} 18. f4
{[%clk 0:02:09.5]} 18... Rd8 {[%clk 0:02:07.4]} 19. Qe3 {[%clk 0:02:03.6]} 19...
d4 {[%clk 0:02:07.1]} 20. Qe2 {[%clk 0:01:52.9]} 20... dxc3 {[%clk 0:02:01.5]}
21. bxc3 {[%clk 0:01:52.9]} 21... Bxc3 {[%clk 0:01:45.4]} 22. Rc1 {[%clk
0:01:52.3]} 22... Bd4+ {[%clk 0:01:38.6]} 23. Kh1 {[%clk 0:01:51.7]} 23... b5
{[%clk 0:01:35.2]} 24. Rc7 {[%clk 0:01:50.7]} 24... Ba8 {[%clk 0:01:32.3]} 25.
f5 {[%clk 0:01:38.5]} 25... Nxf5 {[%clk 0:01:27.5]} 26. Nxf5 {[%clk 0:01:31.4]}
26... exf5 {[%clk 0:01:26.7]} 27. Bc2 {[%clk 0:01:26.1]} 27... Re8 {[%clk
0:01:16.9]} 28. Qd2 {[%clk 0:01:21.2]} 28... Be5 {[%clk 0:00:59.5]} 29. Ra7
{[%clk 0:01:14.2]} 29... Rd8 {[%clk 0:00:50.9]} 30. Rd7 {[%clk 0:01:03.6]} 30...
Rc8 {[%clk 0:00:43.9]} 31. Bb3 {[%clk 0:01:03.1]} 31... Kh8 {[%clk 0:00:30.2]}
32. Rxf7 {[%clk 0:01:01.6]} 32... Qd8 {[%clk 0:00:22.9]} 33. Qh6 {[%clk
0:00:57.6]} 33... Qg8 {[%clk 0:00:20.5]} 34. R7xf5 {[%clk 0:00:51.8]} 34... Bg7
{[%clk 0:00:14.6]} 35. Qh4 {[%clk 0:00:37.6]} 35... Qe8 {[%clk 0:00:08.7]} 36.
Rf7 {[%clk 0:00:36.6]} 36... Qe3 {[%clk 0:00:06.9]} 37. Rxg7 {[%clk 0:00:32.7]}
37... Kxg7 {[%clk 0:00:07.2]} 38. Rf7+ {[%clk 0:00:31.6]} 38... Kg8 {[%clk
0:00:07.7]} 39. Qxh7# {[%clk 0:00:30.8]} 1-0

[Event "Late-Titled-Tuesday-Blitz-July-09-2024"]
[Site "Chess.com"]
[Date "2024.07.09"]
[Round "6"]
[White "Individoom"]
[Black "Slovak_fighter2000"]
[Result "1-0"]
[WhiteElo "2756"]
[BlackElo "2554"]
[TimeControl "180+1"]
[EndTime "15:04:50 PDT"]
[Termination "Individoom won by resignation"]

1. d4 {[%clk 0:02:59.5]} 1... Nf6 {[%clk 0:02:59.8]} 2. Bg5 {[%clk 0:02:59.6]}
2... d5 {[%clk 0:02:57.6]} 3. Nd2 {[%clk 0:02:59.1]} 3... Nbd7 {[%clk
0:02:55.9]} 4. e3 {[%clk 0:02:59.2]} 4... h6 {[%clk 0:02:54.7]} 5. Bh4 {[%clk
0:02:58.9]} 5... c5 {[%clk 0:02:54.9]} 6. c3 {[%clk 0:02:58]} 6... Qb6 {[%clk
0:02:53]} 7. Rb1 {[%clk 0:02:51.8]} 7... e5 {[%clk 0:02:48.9]} 8. Ngf3 {[%clk
0:02:45.5]} 8... cxd4 {[%clk 0:02:32.4]} 9. exd4 {[%clk 0:02:43.2]} 9... e4
{[%clk 0:02:30.2]} 10. Ne5 {[%clk 0:02:40.5]} 10... Nxe5 {[%clk 0:02:19.8]} 11.
dxe5 {[%clk 0:02:39.7]} 11... Ng4 {[%clk 0:02:20.4]} 12. Nxe4 {[%clk 0:02:27.6]}
12... Nxe5 {[%clk 0:02:09.5]} 13. Qxd5 {[%clk 0:02:23.3]} 13... f6 {[%clk
0:01:55.7]} 14. Bb5+ {[%clk 0:02:22.1]} 14... Bd7 {[%clk 0:01:51.7]} 15. Bxd7+
{[%clk 0:02:22]} 15... Nxd7 {[%clk 0:01:52.1]} 16. O-O {[%clk 0:02:21.5]} 16...
Qc6 {[%clk 0:01:48.4]} 17. Rfe1 {[%clk 0:02:16.2]} 17... O-O-O {[%clk
0:01:39.3]} 18. Qxc6+ {[%clk 0:02:10.2]} 18... bxc6 {[%clk 0:01:40.2]} 19. Bg3
{[%clk 0:02:09.2]} 19... Nc5 {[%clk 0:01:25.7]} 20. Nxc5 {[%clk 0:02:02.9]}
20... Bxc5 {[%clk 0:01:25.3]} 21. Rbd1 {[%clk 0:02:03.5]} 21... Rxd1 {[%clk
0:01:19.7]} 22. Rxd1 {[%clk 0:02:03.2]} 22... Re8 {[%clk 0:01:20.1]} 23. Kf1
{[%clk 0:02:02.8]} 23... Re7 {[%clk 0:01:17.8]} 24. f3 {[%clk 0:02:01]} 24... h5
{[%clk 0:01:15.6]} 25. Bf2 {[%clk 0:01:58]} 25... Bb6 {[%clk 0:01:15.8]} 26. b3
{[%clk 0:01:52.6]} 26... Kc7 {[%clk 0:01:10.7]} 27. Rd3 {[%clk 0:01:49.3]} 27...
Kb7 {[%clk 0:01:07.5]} 28. Bxb6 {[%clk 0:01:45.2]} 28... axb6 {[%clk 0:01:07.3]}
29. Kf2 {[%clk 0:01:45.5]} 29... Kc7 {[%clk 0:01:06.9]} 30. h4 {[%clk
0:01:43.8]} 30... Re8 {[%clk 0:01:03]} 31. a4 {[%clk 0:01:40]} 31... Ra8 {[%clk
0:00:56.2]} 32. c4 {[%clk 0:01:33.6]} 32... c5 {[%clk 0:00:47]} 33. Kg3 {[%clk
0:01:29.4]} 33... g6 {[%clk 0:00:44.6]} 34. Kf4 {[%clk 0:01:27]} 34... Kc6
{[%clk 0:00:37]} 35. g4 {[%clk 0:01:27.1]} 35... hxg4 {[%clk 0:00:31.2]} 36.
fxg4 {[%clk 0:01:27.2]} 36... Rh8 {[%clk 0:00:27.1]} 37. Rh3 {[%clk 0:01:21.5]}
37... Kd6 {[%clk 0:00:19.3]} 38. h5 {[%clk 0:01:21]} 38... Ke6 {[%clk
0:00:17.8]} 39. Re3+ {[%clk 0:01:15.4]} 39... Kf7 {[%clk 0:00:17.2]} 40. hxg6+
{[%clk 0:01:15.1]} 40... Kxg6 {[%clk 0:00:18.1]} 41. Re6 {[%clk 0:01:15.3]}
41... Rh1 {[%clk 0:00:07.3]} 42. Rxb6 {[%clk 0:01:13.1]} 42... Rf1+ {[%clk
0:00:07.2]} 43. Ke4 {[%clk 0:01:13]} 43... Kg5 {[%clk 0:00:06.1]} 44. Kd5 {[%clk
0:01:09.9]} 44... Kxg4 {[%clk 0:00:04.5]} 45. Kxc5 {[%clk 0:01:10.2]} 45... f5
{[%clk 0:00:05]} 46. a5 {[%clk 0:01:09.1]} 46... f4 {[%clk 0:00:05.1]} 47. Rf6
{[%clk 0:01:08.3]} 47... f3 {[%clk 0:00:05.1]} 48. a6 {[%clk 0:01:08]} 48... Kg3
{[%clk 0:00:02.1]} 49. a7 {[%clk 0:01:07.5]} 49... Ra1 {[%clk 0:00:02.1]} 50.
Kb6 {[%clk 0:01:07.7]} 50... f2 {[%clk 0:00:01.6]} 51. Kb7 {[%clk 0:01:07.4]}
51... Rb1 {[%clk 0:00:02]} 52. a8=Q {[%clk 0:01:06.3]} 52... Rxb3+ {[%clk
0:00:02.9]} 53. Kc7 {[%clk 0:01:05.5]} 1-0